lending/lending_fUSD_20240112
["ID","MTS","AMOUNT","RATE_DAILY","PERIOD"]
[311288660,1705025365339,151.40112,0.000225,2]
[311288661,1705025366336,151.40112,0.000225,2]
[311288662,1705025367487,151.40112,0.000225,2]
[311288663,1705025368604,151.40112,0.000225,2]
[311288664,1705025369740,501.46,0.00021452,2]
[311288665,1705025372397,1894.97,0.0002222,2]
[311288670,1705025395414,150.0,0.00022239,2]
[311288701,1705025432148,-214.01658608,0.00022548,2]
[311288702,1705025432157,-25.65602698,0.00022548,2]
[311288703,1705025432167,-171.01845948,0.00022642,2]
[311288704,1705025432179,-4096.18041368,0.00022642,2]
[311288705,1705025432189,-200.0,0.00022643,2]
[311288706,1705025432198,-591.02,0.00022643,2]
[311288707,1705025432208,-186.43,0.00022643,2]
[311288708,1705025432217,-1941.43290222,0.00022643,2]
[311288709,1705025432227,-163.36645699,0.00022739,2]
[311288710,1705025432236,-150.0,0.00022799,2]
[311288711,1705025432245,-8987.10891983,0.000228,2]
[311288712,1705025432257,-745.35826249,0.000228,2]
[311288713,1705025432269,-1660.00369468,0.000228,2]
[311288714,1705025432292,-935.31158802,0.000228,2]
[311288715,1705025432306,-345.85363924,0.000228,2]
[311288716,1705025432319,-455.94522447,0.000228,2]
[311288717,1705025432350,-2207.19341563,0.000228,2]
[311288718,1705025432362,-10574.99028053,0.000228,2]
[311288719,1705025432376,-300.96616691,0.000228,2]
[311288720,1705025432390,-578.53223834,0.000228,2]
[311288721,1705025432408,-853.71847551,0.000228,2]
[311288722,1705025432421,-852.59213198,0.000228,2]
[311288723,1705025432462,-11017.79086836,0.000228,2]
[311288724,1705025432474,-331.11970841,0.000228,2]
[311288725,1705025432485,-999.87426,0.000228,2]
[311288726,1705025432496,-301.52504693,0.000228,2]
[311288727,1705025432523,-461.99658012,0.000228,2]
[311288730,1705025432534,-6016.20149855,0.000228,2]
[311288732,1705025432543,-163.36645697,0.0002282,2]
[311288734,1705025432552,-2000.0,0.00022839,2]
[311288736,1705025432561,-423.14,0.00022839,2]
[311288738,1705025432570,-4233.34,0.00022839,2]
[311288740,1705025432579,-332.46,0.00022841,2]
[311288741,1705025432589,-499.99,0.00022841,2]
[311288742,1705025432598,-29725.88506478,0.0002289,2]
[311288743,1705025432607,-181.71631286,0.00022898,2]
[311288744,1705025432617,-158.36523452,0.00022898,2]
[311288745,1705025432626,-1194.8036303,0.00022898,2]
[311288746,1705025432637,-162.68743473,0.00022899,2]
[311288747,1705025432647,-2058.84734033,0.000229,2]
[311288748,1705025432656,-163.36645697,0.000229,2]
[311288749,1705025432667,-212.88991052,0.000229,2]
[311288750,1705025432677,-59.66993011,0.000229,2]
[311288763,1705025438199,-802.36111494,0.000229,2]
[311288764,1705025438209,-800.25,0.000229,2]
[311288765,1705025438219,-231.37112059,0.000229,2]
[311288766,1705025438228,-262.55669441,0.000229,2]
[311288767,1705025438239,-290.710911,0.000229,2]
[311288768,1705025438249,-71391.74858153,0.000229,2]
[311288769,1705025438262,-4546.24141847,0.000229,2]
[311288770,1705025438271,-259.11390423,0.000229,2]
[311288771,1705025438281,-500.0,0.00022918,2]
[311288772,1705025438291,-296.37754218,0.00022998,2]
[311288773,1705025438300,-847.63595815,0.00022998,2]
[311288774,1705025438310,-344.70750837,0.00022998,2]
[311288775,1705025438319,-2977.86084822,0.00022998,2]
[311288776,1705025438329,-2553.44791223,0.00022998,2]
[311288777,1705025438339,-234.5213781,0.00022998,2]
[311288778,1705025438348,-694.54655745,0.00022998,2]
[311288779,1705025438358,-169.80121663,0.00022998,2]
[311288780,1705025438368,-178.26442698,0.00022999,2]
[311288781,1705025438377,-2025.6158067,0.00022999,2]
[311288782,1705025438386,-206.40443824,0.00022999,2]
[311288783,1705025438396,-176.51930353,0.00022999,2]
[311288784,1705025438406,-150.0,0.00022999,2]
[311288785,1705025438416,-150.0,0.00022999,2]
[311288786,1705025438425,-515678.10889864,0.00023,2]
[311288787,1705025438437,-2027.33882137,0.00023,2]
[311288788,1705025438449,-1840.01178555,0.00023,2]
[311288789,1705025438462,-2663.89063531,0.00023,2]
[311288790,1705025438569,-616.01249581,0.00023,2]
[311288791,1705025438581,-698.98004566,0.00023,2]
[311288792,1705025438593,-2518.07172994,0.00023,2]
[311288793,1705025438605,-1023.47365409,0.00023,2]
[311288794,1705025438617,-370.9210067,0.00023,2]
[311288795,1705025438633,-4352.92914523,0.00023,2]
[311288796,1705025438649,-1935.14523817,0.00023,2]
[311288798,1705025438665,-23756.380366,0.00023,2]
[311288800,1705025438681,-281.55,0.00023,2]
[311288802,1705025438713,-8895.65150137,0.00023,2]
[311288804,1705025438725,-429.73880918,0.00023,2]
[311288806,1705025438736,-417.121379,0.00023,2]
[311288844,1705025440731,-3865.0277147,0.00023,2]
[311288881,1705025441383,-125771.91278991,0.00023,2]
[311288887,1705025443127,-1150.81980858,0.00023,2]
[311288888,1705025443138,-440.4400024,0.00023,2]
[311288889,1705025443172,-4618.34830599,0.00023,2]
[311288890,1705025443186,-6803.76362928,0.00023,2]
[311288891,1705025443198,-1293.79166905,0.00023,2]
[311288892,1705025443340,-2847.20335255,0.00023,2]
[311288893,1705025443396,-101101.92715807,0.00023,2]
[311288894,1705025443410,-4550.14600257,0.00023,2]
[311288900,1705025446202,-384.41231262,0.000229,2]
[311288901,1705025446213,-95.80906591,0.00022999,2]
[311288902,1705025446226,-996.79098651,0.00022999,2]
[311288903,1705025446236,-29899.0960534,0.00023,2]
[311288904,1705025446315,-8394.4012584,0.00023,2]
[311288905,1705025446427,-390.61508953,0.00023,2]
[311288906,1705025446490,-759.08272986,0.00023,2]
[311288907,1705025446501,-3172.46288547,0.00023,2]
[311288908,1705025446528,-892.70613654,0.00023,2]
[311288909,1705025446547,-318.62652592,0.00023,2]
[311288910,1705025446559,-612.16638275,0.00023,2]
[311288911,1705025446571,-550.66084252,0.00023,2]
[311288913,1705025471661,5109.96,0.00025,10]
[311288914,1705025522058,-190.81005512,0.00022788,2]
[311288915,1705025522083,-300.0,0.00022789,2]
[311288916,1705025522105,-2943.97850092,0.00022789,2]
[311288917,1705025522128,-11981.5938,0.0002279,2]
[311288918,1705025522150,-9585.68517976,0.0002289,2]
[311288919,1705025522173,-1257.85,0.000229,2]
[311288920,1705025522197,-170.38870431,0.000229,2]
[311288921,1705025522221,-455.36589127,0.000229,2]
[311288922,1705025522242,-701.29346817,0.00022998,2]
[311288923,1705025522264,-6448.54159765,0.00022998,2]
[311288924,1705025522287,-766.91078743,0.00022998,2]
[311288925,1705025522310,-156.07024444,0.00022998,2]
[311288926,1705025522332,-267.87940167,0.00022998,2]
[311288927,1705025522353,-155.71610897,0.00022998,2]
[311288928,1705025522376,-3689.62830491,0.00022998,2]
[311288929,1705025522400,-596.45959812,0.00022998,2]
[311288930,1705025522423,-155.41643669,0.00022998,2]
[311288931,1705025522445,-232.92375042,0.00022998,2]
[311288932,1705025522467,-399.94387595,0.00022998,2]
[311288933,1705025522488,-1512.87812572,0.00022998,2]
[311288934,1705025522509,-1000.0,0.00022999,2]
[311288935,1705025522531,-172.34910409,0.00022999,2]
[311288936,1705025522552,-7809.1026548,0.00022999,2]
[311288937,1705025522573,-526.13222248,0.00022999,2]
[311288938,1705025522595,-218.50920252,0.00022999,2]
[311288939,1705025522616,-569.69468918,0.00022999,2]
[311288940,1705025522638,-296734.87829541,0.00023,2]
[311288942,1705025589411,23900.0,0.0002222,2]
[311288943,1705025590196,151.40112,0.000225,2]
[311288944,1705025591317,151.40112,0.000225,2]
[311288945,1705025592248,151.40112,0.000225,2]
[311288946,1705025593159,151.40112,0.000225,2]
[311288948,1705025594066,151.40112,0.000225,2]
[311288949,1705025595032,151.40112,0.000225,2]
[311288950,1705025596079,151.40112,0.000225,2]
[311288951,1705025597022,151.40112,0.000225,2]
[311288952,1705025598025,151.40112,0.000225,2]
[311288953,1705025598976,151.40112,0.000225,2]
[311288954,1705025599871,151.40112,0.000225,2]
[311288955,1705025600825,151.40112,0.000225,2]
[311288956,1705025601866,151.40112,0.000225,2]
[311288957,1705025602911,151.40112,0.000225,2]
[311288958,1705025604037,151.40112,0.000225,2]
[311288959,1705025605176,151.40112,0.000225,2]
[311288960,1705025606423,151.40112,0.000225,2]
[311288961,1705025607112,151.40112,0.000225,2]
[311288962,1705025608064,151.40112,0.000225,2]
[311288963,1705025609000,151.40112,0.000225,2]
[311288964,1705025631353,250.0,0.00022,2]
[311288965,1705025632618,250.0,0.00022274,2]
[311288966,1705025678645,151.40112,0.000225,2]
[311288967,1705025679780,151.40112,0.000225,2]
[311288968,1705025680480,151.40112,0.000225,2]
[311288969,1705025681360,151.40112,0.000225,2]
[311288970,1705025682210,151.40112,0.000225,2]
[311288971,1705025683049,151.40112,0.000225,2]
[311288972,1705025683910,151.40112,0.000225,2]
[311288973,1705025684806,151.40112,0.000225,2]
[311288974,1705025685714,151.40112,0.000225,2]
[311288975,1705025686629,151.40112,0.000225,2]
[311288976,1705025687758,151.40112,0.000225,2]
[311288977,1705025688720,151.40112,0.000225,2]
[311288978,1705025690085,151.40112,0.000225,2]
[311288979,1705025690552,151.40112,0.000225,2]
[311288980,1705025691505,151.40112,0.000225,2]
[311288981,1705025702762,151.96474057,0.00022,2]
[311288982,1705025732951,176.09,0.00022,2]
[311288983,1705025770082,151.40112,0.000225,2]
[311288984,1705025771048,151.40112,0.000225,2]
[311288985,1705025771909,151.40112,0.000225,2]
[311288986,1705025772849,151.40112,0.000225,2]
[311288987,1705025773840,151.40112,0.000225,2]
[311288988,1705025774804,151.40112,0.000225,2]
[311288989,1705025775759,151.40112,0.000225,2]
[311288990,1705025776734,151.40112,0.000225,2]
[311288993,1705025777813,151.40112,0.000225,2]
[311288994,1705025778894,151.40112,0.000225,2]
[311288995,1705025779969,151.40112,0.000225,2]
[311288996,1705025780918,151.40112,0.000225,2]
[311288997,1705025781887,151.40112,0.000225,2]
[311288998,1705025782864,151.40112,0.000225,2]
[311288999,1705025784290,151.40112,0.000225,2]
[311289000,1705025799597,519.02,0.00021061,2]
[311289001,1705025921458,409.02,0.00022342,2]
[311289002,1705025932415,151.40112,0.000225,2]
[311289003,1705025933489,151.40112,0.000225,2]
[311289004,1705025934376,151.40112,0.000225,2]
[311289005,1705025935431,151.40112,0.000225,2]
[311289006,1705025936440,151.40112,0.000225,2]
[311289007,1705025937330,151.40112,0.000225,2]
[311289008,1705025938245,151.40112,0.000225,2]
[311289009,1705025939172,151.40112,0.000225,2]
[311289010,1705025940276,151.40112,0.000225,2]
[311289011,1705025941151,151.40112,0.000225,2]
[311289012,1705025995859,2383.66,0.00022182,2]
[311289013,1705025998649,524.01,0.00022342,2]
[311289014,1705026005940,497.91,0.00022182,2]
[311289015,1705026033950,205.0,0.00022072,2]
[311289016,1705026057399,211.05,0.00022367,2]
[311289017,1705026057626,211.05,0.00022429,2]
[311289018,1705026057900,211.05,0.0002249,2]
[311289019,1705026069994,1020.24,0.00022182,2]
[311289020,1705026085416,23900.0,0.00021969,2]
[311289022,1705026112864,151.40112,0.000225,2]
[311289023,1705026113881,151.40112,0.000225,2]
[311289024,1705026114814,151.40112,0.000225,2]
[311289025,1705026115825,151.40112,0.000225,2]
[311289026,1705026116692,151.40112,0.000225,2]
[311289027,1705026117626,151.40112,0.000225,2]
[311289028,1705026118622,151.40112,0.000225,2]
[311289029,1705026119516,151.40112,0.000225,2]
[311289030,1705026120461,151.40112,0.000225,2]
[311289031,1705026121407,151.40112,0.000225,2]
[311289032,1705026123171,151.40112,0.000225,2]
[311289033,1705026124239,151.40112,0.000225,2]
[311289034,1705026125614,151.40112,0.000225,2]
[311289035,1705026126545,151.40112,0.000225,2]
[311289036,1705026127631,151.40112,0.000225,2]
[311289037,1705026148278,426.99,0.00021971,2]
[311289038,1705026156756,152.36,0.00021962,2]
[311289039,1705026163993,171.02,0.00021949,2]
[311289040,1705026213060,250.0,0.00021962,2]
[311289041,1705026332541,190.19,0.00021968,2]
[311289042,1705026342120,531.44,0.0002005,2]
[311289043,1705026342462,531.44,0.00022314,2]
[311289044,1705026345583,289.31721187,0.00022,2]
[311289045,1705026349481,151.40112,0.000225,2]
[311289046,1705026350372,151.40112,0.000225,2]
[311289047,1705026351300,151.40112,0.000225,2]
[311289048,1705026352175,151.40112,0.000225,2]
[311289049,1705026353067,151.40112,0.000225,2]
[311289050,1705026354172,151.40112,0.000225,2]
[311289051,1705026354780,151.40112,0.000225,2]
[311289052,1705026355742,151.40112,0.000225,2]
[311289053,1705026356605,151.40112,0.000225,2]
[311289054,1705026357476,151.40112,0.000225,2]
[311289055,1705026373590,150.0,0.00021955,2]
[311289056,1705026381085,1838.11,0.00021969,2]
[311289057,1705026424486,338.17,0.00021956,2]
[311289058,1705026437301,-682.73717597,0.00022543,2]
[311289061,1705026531614,1000.0,0.00021929,2]
[311289063,1705026575124,189.77,0.00022133,2]
[311289064,1705026575346,189.77,0.00022194,2]
[311289065,1705026575548,189.77,0.00022254,2]
[311289066,1705026576011,189.77,0.00022315,2]
[311289067,1705026576149,189.77,0.00022376,2]
[311289068,1705026576242,189.77,0.00022436,2]
[311289069,1705026576488,189.77,0.00022497,2]
[311289072,1705026608798,178.76,0.00022161,2]
[311289073,1705026632273,-250.0,0.00022548,2]
[311289075,1705026632283,-758.05722522,0.00022551,2]
[311289076,1705026632292,-189.77,0.00022558,2]
[311289077,1705026632301,-189.77,0.00022618,2]
[311289078,1705026632310,-150.55529553,0.00022648,2]
[311289079,1705026632319,-31.9015768,0.00022679,2]
[311289081,1705026632332,-157.8684232,0.00022679,2]
[311289083,1705026632341,-152.36,0.00022694,2]
[311289085,1705026632350,-189.77,0.0002274,2]
[311289086,1705026632362,-366.85376397,0.0002277,2]
[311289087,1705026632373,-180.14623603,0.0002277,2]
[311289088,1705026632384,-168.07792633,0.000228,2]
[311289089,1705026632396,-384.46826826,0.000228,2]
[311289090,1705026632409,-67.05173174,0.000228,2]
[311289091,1705026632418,-150.99,0.000228,2]
[311289092,1705026632426,-145.32199905,0.00022801,2]
[311289093,1705026632438,-44.44800095,0.00022801,2]
[311289094,1705026632447,-168.07792631,0.0002282,2]
[311289095,1705026632456,-458.06550699,0.00022822,2]
[311289096,1705026632465,-168.07792631,0.0002284,2]
[311289097,1705026632473,-168.07792631,0.0002286,2]
[311289098,1705026632482,-189.77,0.00022861,2]
[311289099,1705026632491,-168.07792631,0.0002288,2]
[311289100,1705026632500,-168.07792631,0.000229,2]
[311289101,1705026632509,-176.54059545,0.000229,2]
[311289102,1705026632519,-2013.0128,0.000229,2]
[311289103,1705026632528,-1334.8894,0.000229,2]
[311289104,1705026632538,-3043.55632982,0.000229,2]
[311289105,1705026632552,-201.59715363,0.000229,2]
[311289106,1705026632562,-876.8217,0.000229,2]
[311289107,1705026632572,-6975.7954,0.000229,2]
[311289108,1705026632583,-171.13876831,0.000229,2]
[311289109,1705026632592,-3996.45615218,0.000229,2]
[311289110,1705026632601,-84404.2601,0.000229,2]
[311289111,1705026632611,-303.57726084,0.000229,2]
[311289112,1705026632621,-1120.81950954,0.000229,2]
[311289113,1705026632632,-232.00975791,0.000229,2]
[311289114,1705026632643,-189.77,0.00022922,2]
[311289116,1705026632653,-426.99,0.00022949,2]
[311289118,1705026632662,-183.64,0.00022965,2]
[311289120,1705026632670,-205.0,0.00022969,2]
[311289122,1705026632679,-206.0,0.00022969,2]
[311289124,1705026632688,-189.77,0.00022983,2]
[311289126,1705026632697,-197.98548711,0.0002299,2]
[311289127,1705026632706,-257.1371496,0.00022998,2]
[311289129,1705026632716,-189.65356612,0.00022998,2]
[311289131,1705026632725,-254.85666925,0.00022998,2]
[311289132,1705026632734,-582.10243483,0.00022999,2]
[311289133,1705026632743,-213.53985557,0.00022999,2]
[311289135,1705026632752,-1009.29443095,0.00022999,2]
[311289137,1705026632762,-115903.30600128,0.00023,2]
[311289138,1705026632783,-520.43994601,0.00022547,2]
[311289139,1705026632792,-1402.42381345,0.00023,2]
[311289140,1705026632804,-450.037073,0.00023,2]
[311289141,1705026632816,-780.97964211,0.00023,2]
[311289142,1705026632827,-1705.90980672,0.00023,2]
[311289143,1705026632861,-1506.46241609,0.00023,2]
[311289144,1705026632881,-469.13636334,0.00023,2]
[311289145,1705026632894,-1718.26136951,0.00023,2]
[311289146,1705026632905,-598.87483684,0.00023,2]
[311289147,1705026632917,-20541.40683352,0.00023,2]
[311289148,1705026632929,-23731.05809975,0.00023,2]
[311289149,1705026632940,-572.78766273,0.00023,2]
[311289150,1705026632952,-1766.89073922,0.00023,2]
[311289151,1705026632969,-990.19706759,0.00023,2]
[311289152,1705026632980,-823.85212957,0.00023,2]
[311289153,1705026632996,-1231.24664963,0.00023,2]
[311289154,1705026633007,-482.20653933,0.00023,2]
[311289155,1705026633018,-893.71670212,0.00023,2]
[311289156,1705026633029,-2153.15737728,0.00023,2]
[311289157,1705026633040,-16225.47552374,0.00023,2]
[311289158,1705026633052,-5089.28194103,0.00023,2]
[311289159,1705026633066,-1158.5703564,0.00023,2]
[311289160,1705026633078,-10698.95237026,0.00023,2]
[311289161,1705026633090,-1186.83409097,0.00023,2]
[311289162,1705026633101,-1067.034,0.00023,2]
[311289163,1705026633112,-885.4525,0.00023,2]
[311289164,1705026633123,-938.959998,0.00023,2]
[311289173,1705026638330,-450.32550937,0.00023,2]
[311289174,1705026638342,-786.3685892,0.00023,2]
[311289175,1705026638354,-2774450.71393684,0.00023,2]
[311289176,1705026638363,-936.04923374,0.00023,2]
[311289177,1705026638372,-95591.0,0.00023,2]
[311289178,1705026638382,-499.99,0.00023007,2]
[311289179,1705026638391,-189.77,0.00023043,2]
[311289180,1705026638401,-160.5,0.00023049,2]
[311289181,1705026638410,-758.05722522,0.00023067,2]
[311289182,1705026638419,-167.89,0.00023076,2]
[311289183,1705026638429,-189.77,0.00023104,2]
[311289184,1705026638438,-3765.38170751,0.0002313,2]
[311289185,1705026638447,-189.77,0.00023165,2]
[311289186,1705026638457,-189.77,0.00023226,2]
[311289187,1705026638466,-167.14,0.00023272,2]
[311289188,1705026638475,-189.77,0.00023286,2]
[311289189,1705026638485,-371.6669867,0.00023288,2]
[311289190,1705026638494,-156.95389125,0.00023288,2]
[311289191,1705026638503,-269.13597413,0.00023288,2]
[311289192,1705026638512,-500.0,0.00023288,2]
[311289193,1705026638521,-152.36,0.00023427,2]
[311289194,1705026638530,-160.5,0.0002351,2]
[311289195,1705026638540,-166.94,0.00023604,2]
[311289196,1705026638553,-426.99,0.00023928,2]
[311289197,1705026638562,-160.5,0.00023971,2]
[311289198,1705026638571,-3043.55632981,0.00023999,2]
[311289199,1705026638580,-152.36,0.00024159,2]
[311289200,1705026638589,-167.28,0.00024297,2]
[311289201,1705026638598,-160.5,0.00024432,2]
[311289202,1705026638608,-150.0,0.00024573,2]
[311289203,1705026638617,-531.44,0.00024578,2]
[311289204,1705026638626,-150.0,0.0002459,2]
[311289205,1705026638638,-150.0,0.00024607,2]
[311289206,1705026638647,-150.0,0.00024619,2]
[311289207,1705026638657,-312.87272009,0.00024658,2]
[311289208,1705026638667,-250.0,0.00024658,2]
[311289209,1705026638678,-150.0,0.00024661,2]
[311289210,1705026638690,-150.0,0.00024667,2]
[311289211,1705026638701,-1000.0,0.0002467,2]
[311289212,1705026638711,-151.96,0.00024837,2]
[311289213,1705026638721,-55555.0,0.00024888,2]
[311289214,1705026638730,-160.5,0.00024893,2]
[311289215,1705026638740,-426.99,0.00024906,2]
[311289216,1705026638750,-205.0,0.00024918,5]
[311289217,1705026638759,-150.0,0.00024987,2]
[311289218,1705026638769,-150.0,0.00024987,2]
[311289219,1705026638779,-271124.39143732,0.00024988,2]
[311289220,1705026638793,-725935.04954327,0.00024988,2]
[311289221,1705026638804,-167.16432493,0.00025,2]
[311289222,1705026638814,-1582.37478172,0.00025,2]
[311289223,1705026638824,-550.0,0.00025,3]
[311289224,1705026638834,-3043.55632981,0.00025098,2]
[311289225,1705026638843,-151.96,0.00025148,2]
[311289226,1705026638853,-183.64,0.00025261,2]
[311289227,1705026638863,-160.5,0.00025354,2]
[311289228,1705026638872,-151.96,0.00025458,2]
[311289229,1705026638882,-151.96,0.00025769,2]
[311289230,1705026638892,-426.99,0.00025884,2]
[311289231,1705026638902,-151.96,0.00026079,2]
[311289232,1705026638911,-150.0,0.00026079,2]
[311289233,1705026638919,-3043.55632981,0.00026196,2]
[311289234,1705026638929,-151.96,0.0002639,2]
[311289235,1705026638938,-7089.19,0.00026575,2]
[311289236,1705026638948,-5284.7466,0.00026647,2]
[311289237,1705026638958,-151.96,0.000267,2]
[311289238,1705026638967,-302.37564265,0.00026745,2]
[311289239,1705026638977,-1000.0,0.000268,2]
[311289240,1705026638987,-531.44,0.00026842,2]
[311289241,1705026638996,-426.99,0.00026863,2]
[311289242,1705026639006,-205.0,0.00026867,8]
[311289243,1705026639015,-600.0,0.00027,3]
[311289244,1705026639028,-10000.0,0.00027,3]
[311289245,1705026639038,-151.96,0.00027011,2]
[311289246,1705026639047,-3043.55632981,0.00027295,2]
[311289247,1705026639057,-151.96,0.00027321,2]
[311289248,1705026639066,-157.54265988,0.00027397,2]
[311289249,1705026639076,-781.55217568,0.00027397,2]
[311289250,1705026639086,-161.58,0.00027397,2]
[311289251,1705026639095,-250.0,0.00027397,2]
[311289252,1705026639105,-250.0,0.000274,2]
[311289253,1705026639114,-1000.0,0.000274,2]
[311289254,1705026639123,-1000.0,0.00027412,2]
[311289255,1705026639133,-183.64,0.00027558,2]
[311289256,1705026639142,-426.99,0.00027841,2]
[311289257,1705026639152,-1000.0,0.00028,2]
[311289258,1705026639162,-323.83429801,0.0002831,2]
[311289259,1705026639171,-3043.55632981,0.00028394,2]
[311289260,1705026639182,-3026.0,0.000288,2]
[311289261,1705026639192,-28505.0,0.000288,2]
[311289262,1705026639201,-205.0,0.00028816,11]
[311289263,1705026639211,-426.99,0.0002882,2]
[311289264,1705026639220,-303.57726084,0.000289,2]
[311289265,1705026639230,-16499.22203045,0.00029,3]
[311289266,1705026639239,-650.0,0.00029,3]
[311289267,1705026639249,-531.44,0.00029106,2]
[311289268,1705026639258,-3043.55632981,0.00029493,2]
[311289269,1705026639268,-800.0,0.00029561,5]
[311289270,1705026639277,-200.0,0.00029562,3]
[311289271,1705026639287,-800.0,0.00029562,5]
[311289272,1705026639297,-150.0,0.00029638,2]
[311289273,1705026639307,-150.0,0.00029672,2]
[311289274,1705026639319,-201.59715362,0.000297,2]
[311289275,1705026639328,-150.0,0.00029709,2]
[311289276,1705026639338,-150.0,0.00029717,2]
[311289277,1705026639349,-184.8547128,0.0002974,2]
[311289278,1705026639365,-150.0,0.00029741,2]
[311289279,1705026639374,-150.0,0.00029749,2]
[311289280,1705026639383,-150.24834942,0.00029797,2]
[311289281,1705026639393,-491.56711616,0.00029798,2]
[311289282,1705026639403,-1339.48741297,0.00029798,2]
[311289283,1705026639413,-319.57156587,0.00029798,2]
[311289284,1705026639422,-156.1337231,0.00029798,2]
[311289285,1705026639434,-1021.59090256,0.00029798,2]
[311289286,1705026639443,-2949.20104175,0.00029798,2]
[311289287,1705026639453,-1501.18569159,0.00029798,2]
[311289288,1705026639464,-5752.5487661,0.00029798,2]
[311289289,1705026639473,-1313.1571629,0.00029798,2]
[311289290,1705026639483,-237.6945093,0.00029798,2]
[311289291,1705026639493,-4148.484174,0.00029798,2]
[311289292,1705026639502,-426.99,0.00029798,2]
[311289293,1705026639514,-3292.32224499,0.00029799,2]
[311289294,1705026639525,-11278.94308805,0.00029799,2]
[311289295,1705026639543,-119271.88621348,0.00029799,2]
[311289296,1705026639554,-150.0,0.00029799,2]
[311289297,1705026639564,-150.0,0.00029799,2]
[311289298,1705026639574,-396106.22268516,0.000298,2]
[311289299,1705026639608,-6633.3599019,0.000298,2]
[311289300,1705026639621,-13895.27057306,0.000298,2]
[311289301,1705026639633,-285.49172499,0.000298,2]
[311289302,1705026639702,-169.23144068,0.00022692,2]
[311289303,1705026639712,-50392.13144985,0.000298,2]
[311289304,1705026639728,-116610.98372616,0.000298,2]
[311289305,1705026639741,-45462.79312494,0.000298,2]
[311289306,1705026639754,-1000.0,0.000298,2]
[311289307,1705026640434,300.27047109,0.00022442,2]
[311289308,1705026640458,963.26166831,0.00022442,2]
[311289310,1705026641387,-150.0,0.00022646,2]
[311289311,1705026641398,-474.5037373,0.00022651,2]
[311289312,1705026641442,-789.0284021,0.00022651,2]
[311289313,1705026641453,-499.99,0.00023226,2]
[311289314,1705026641462,-1263.5321394,0.00023238,2]
[311289315,1705026641472,-333.92698255,0.000298,2]
[311289316,1705026641484,-788.96681402,0.000298,2]
[311289317,1705026641515,-1698.52317393,0.000298,2]
[311289318,1705026641527,-326.57558133,0.000298,2]
[311289319,1705026641562,-29789.56620323,0.000298,2]
[311289320,1705026641573,-478.76041369,0.000298,2]
[311289321,1705026641584,-877.16886363,0.000298,2]
[311289322,1705026641622,-713.16322836,0.000298,2]
[311289323,1705026641634,-1475.12240308,0.000298,2]
[311289326,1705026643526,-871.23723563,0.00023293,2]
[311289327,1705026643582,-392.29490377,0.00023293,2]
[311289328,1705026643592,-57.70509623,0.00023927,3]
[311289329,1705026643614,-269.96546445,0.00023927,3]
[311289330,1705026643623,-39574.88545692,0.000298,2]
[311289331,1705026643635,-1008.28687562,0.000298,2]
[311289332,1705026643647,-12291.94301803,0.000298,2]
[311289333,1705026643658,-495.13548268,0.000298,2]
[311289334,1705026643686,-155.0,0.00027433,5]
[311289335,1705026643698,-18206.70122981,0.000298,2]
[311289361,1705026646417,-2231.00840984,0.00029799,2]